Cogmind - Beta 15 @@@ ROGUE MODE // 2025.05.28 @ 18:56:01 Player: Demo Result: Destroyed by ST-P3K(R) with Subdweller Machine Gun Performance ------------- Evolutions (0) 0 Regions Visited (2) 400 Robots Destroyed (33) 165 Value Destroyed (589) 589 Prototype IDs (0) 0 Alien Tech Used (0) 0 Bonus (0) 0 TOTAL SCORE: 1154 Bonus ------- None Cogmind --------- Core Integrity 0/250 Matter 250/300 Energy 53/100 System Corruption 0% Temperature Cool (0) Movement Treading (720) Ox7 Location -10/Subcaves Parts ------- > --- POWER (1) -------- (None) > --- PROPULSION (2) --- Light Treads Wheel > --- UTILITY (2) ------ Cargo Storage Unit > --- WEAPON (2) ------- Subdweller Beam Cannon Subdweller Machine Gun > --- INVENTORY (30) --- Wheel Wheel Subdweller Monowheel Subdweller Monowheel Subdweller Monowheel Heat Sink Improved Heat Sink Cargo Storage Unit Large Battery (200) Small Matter Pod (50) Medium Matter Pod (100) Structural Scanner Visual Processing Unit Improved Terrain Scanner Seismic Detector Light Armor Plating Scrap Shield Tractor Beam Medium Laser Subdweller Laser Battle Rifle Barrage Gun Barrage Gun Subdweller Shrapnel Launcher Hammer Peak State ------------ > --- POWER ------------ Light Ion Engine > --- PROPULSION ------- Light Treads Wheel > --- UTILITY ---------- Cargo Storage Unit > --- WEAPON ----------- Particle Gun Subdweller Machine Gun > --- INVENTORY -------- Light Treads Wheel Wheel Wheel Wheel Wheel Subdweller Monowheel Heat Sink Improved Heat Sink Cargo Storage Unit Large Battery Small Matter Pod Medium Matter Pod Structural Scanner Visual Processing Unit Improved Terrain Scanner Seismic Detector Light Armor Plating Tractor Beam EM Pulse Gun EM Pulse Gun Medium Laser Subdweller Laser Light Assault Rifle Light Assault Rifle Light Assault Rifle Barrage Gun Barrage Gun Hammer [Rating: 13] Favorites ----------- Power Light Ion Engine Engine Light Ion Engine Propulsion Wheel Treads Light Treads Wheel Wheel Utility Cargo Storage Unit Device Seismic Detector Storage Cargo Storage Unit Weapon Subdweller Machine Gun Energy Gun EM Pulse Gun Energy Cannon Subdweller Beam Cannon Ballistic Gun Subdweller Machine Gun Ballistic Cannon Battle Cannon Impact Weapon Hammer Build | -11 -10 -10 ------- Run | Yrd Mat Sub Slots Evolved . | . . . Power . | . . . Propulsion . | . . . Utility . | . . . Weapon . | . . . Parts Attached 22 | 5 9 8 Power 2 | . 2 . Engine 2 | . 2 . Core . | . . . Reactor . | . . . Propulsion 7 | 2 2 3 Treads 2 | 2 . . Leg . | . . . Wheel 5 | . 2 3 Hover . | . . . Flight . | . . . Utility 2 | 1 1 . Device 1 | 1 . . Storage 1 | . 1 . Processor . | . . . Hackware . | . . . Protection . | . . . Artifact . | . . . Weapon 11 | 2 4 5 Energy Gun 2 | 1 . 1 Energy Cannon 1 | . . 1 Ballistic Gun 5 | 1 2 2 Ballistic Cannon 2 | . 1 1 Launcher . | . . . Special Weapon . | . . . Impact Weapon 1 | . 1 . Slashing Weapon . | . . . Piercing Weapon . | . . . Special Melee Weapon . | . . . Unidentified Prototypes . | . . . Parts Lost 9 | . 2 7 Power 2 | . 1 1 Propulsion 4 | . . 4 Utility . | . . . Weapon 3 | . 1 2 Highest Loss Streak 3 | . 1 3 To Critical Strikes . | . . . Average Backups 23 | 3 17 27 Power . | . . . Propulsion 6 | 1 4 7 Utility 10 | 1 8 12 Weapon 6 | . 4 7 Tool/Special . | . . . Unused Backups 34 | . 9 25 Power . | . . . Propulsion 7 | . 2 5 Utility 18 | . 6 12 Weapon 8 | . . 8 Tool/Special 1 | . 1 . Average Slot Usage (%) 77 | . 78 77 Engine 7 | . 9 6 Treads 9 | . 3 12 Wheel 18 | . 24 15 Storage 13 | . 11 14 Energy Gun 5 | . 7 3 Ballistic Gun 12 | . 10 13 Ballistic Cannon 9 | . 6 11 Peak Build Rating 13 | 4 10 13 Average Rating 10 | 3 8 12 On Entrance 4 | . 4 10 Naked Turns . | . . . Heaviest Build 150 | 4 148 150 Greatest Support 20 | 3 20 20 Greatest Overweight (x) 14 | 1 7 14 Average Overweight (x) 7 | . 4 12 Largest Inventory Capacity 30 | 5 30 30 Average Capacity 27 | 5 26 30 Most Carried 30 | 5 30 30 Average Carried 24 | 3 18 29 Final Capacity 30 | 5 30 30 Final Carried 30 | 4 30 27 Class Distribution -------------------- 91% | Hauler-Mutant 8% | Mutant Dominant Class ---------------- Hauler-Mutant | -10/Materials Hauler-Mutant | -10/Subcaves Resources | -11 -10 -10 ----------- Run | Yrd Mat Sub Matter Collected 783 | 267 320 196 Remotely . | . . . Salvage Created 953 | 170 546 237 Parts 75 | 14 47 14 Haulers Intercepted 2 | . 2 . Recyclers Shooed . | . . . Parts Field Recycled . | . . . Retrieved Matter . | . . . Parts Self-Destructed 6 | . . 6 Prevented . | . . . Kills | -11 -10 -10 ------- Run | Yrd Mat Sub Combat Hostiles Destroyed 16 | . 9 7 Guns 8 | . 4 4 Cannons 8 | . 5 3 Classes Destroyed 9 | 2 6 1 Worker 3 | . 3 . Builder 3 | . 3 . Tunneler 4 | 4 . . Hauler 2 | . 2 . Recycler 2 | 1 1 . Watcher 3 | . 3 . Swarmer 5 | . 5 . Grunt 4 | . 4 . Subdweller 7 | . . 7 Best Kill Streak 6 | 3 6 2 Combat Bots Only 5 | . 5 2 Max Kills in Single Turn 1 | 1 1 1 Gunslinging . | . . . Exploded . | . . . Melee . | . . . Uniques/NPCs Destroyed . | . . . Combat | -11 -10 -10 -------- Run | Yrd Mat Sub Hostile Shots Fired 106 | . 48 58 Missed 17 | . 12 5 Hits 89 | . 36 53 Projectile 89 | . 36 53 Critical Strikes 3 | . 2 1 Damage Taken 1444 | . 337 1107 Core 258 | . 80 178 Absorbed by Shields . | . . . Core Remaining (%) 100 | 100 . . Volleys Fired 88 | 9 48 31 Largest 2 | 2 2 2 Hottest 110 | 60 70 110 Shots Fired 171 | 18 93 60 Gun 116 | 18 57 41 Cannon 55 | . 36 19 Launcher . | . . . Special . | . . . Kinetic 115 | 9 65 41 Thermal 19 | . . 19 Explosive . | . . . Electromagnetic 37 | 9 28 . Robot Hit Streak 12 | 7 9 12 Robot Miss Streak 6 | 1 6 2 Penetration Max . | . . . Secondary Targets . | . . . Shots Hit Robots 100 | 11 44 45 Core Hits 46 | 8 26 12 Critical Kills . | . . . Critical Parts Destroyed . | . . . Critical Strikes 1 | . 1 . Blast 1 | . 1 . Melee Attacks 10 | . 9 1 Impact 10 | . 9 1 Slashing . | . . . Piercing . | . . . Sneak Attacks . | . . . Combat Hostiles . | . . . Follow-up Attacks . | . . . Damage Inflicted 1626 | 201 749 676 Guns 972 | 149 421 402 Cannons 536 | . 262 274 Explosions 118 | 52 66 . Melee . | . . . Ramming . | . . . Kinetic 920 | 72 402 446 Thermal 348 | 52 66 230 Explosive . | . . . Electromagnetic 358 | 77 281 . Impact . | . . . Slashing . | . . . Piercing . | . . . Highest Corruption . | . . . Average Corruption . | . . . Corruption Purged . | . . . Corruption Blocked . | . . . Overload Shots . | . . . Overflow Damage 23 | 10 13 . Projectiles 10 | . 10 . Explosions 13 | 10 3 . Melee . | . . . Knockbacks 5 | . 2 3 Impact . | . . . Kinetic 5 | . 2 3 Secondary . | . . . Self-Inflicted Damage . | . . . Shots . | . . . Rammed . | . . . Targets Rammed . | . . . Kicked . | . . . Crushed . | . . . Highest Temperature 80 | . 80 8 Average Temperature 22 | . 27 3 Received Heat Transfer 120 | . 78 42 Siege Activations . | . . . Martial Activations . | . . . Shielding Activations . | . . . Robots Disrupted . | . . . Combat Hostiles . | . . . Robots Corrupted . | . . . Combat Hostiles . | . . . Parts Fried 2 | 1 1 . Impact Corruptions . | . . . Robots Melted . | . . . Combat Hostiles . | . . . Parts Melted 1 | . . 1 Heat Transferred 768 | 100 150 518 Parts Sabotaged . | . . . Parts Stolen . | . . . Parts Stripped . | . . . Power Chain Reactions 3 | 1 2 . Alert | -11 -10 -10 ------- Run | Yrd Mat Sub Maximum Alert Level . | . . . Low Security (%) 100 | 100 100 . Level 1 . | . . . Level 2 . | . . . Level 3 . | . . . Level 4 . | . . . Level 5 . | . . . High Security . | . . . Max Security . | . . . Peak Influence 161 | 15 161 . Initial 3 | . 3 . Average 69 | 3 79 . Influence Increases 353 | 25 328 . Destroy 0b10 Robot/C 180 | . 180 . Destroy 0b10 Robot/NC 85 | 25 60 . Destroy Leader 50 | . 50 . Destroy Structure 8 | . 8 . Lose Combat Pursuer 30 | . 30 . Influence Decreases 353 | 20 269 64 Entered New Map 34 | . 2 32 Time Decay 287 | 20 247 20 Lost Part 32 | . 20 12 Squads Dispatched 2 | . 2 . Investigation . | . . . Extermination . | . . . Reinforcement 2 | . 2 . Assault . | . . . Garrison . | . . . Intercept . | . . . Searches Triggered . | . . . Construction Impeded . | . . . Haulers Reinforced . | . . . Active Scanning Responses . | . . . Cargo Convoy Interrupts . | . . . Stealth | -11 -10 -10 --------- Run | Yrd Mat Sub Distress Signals 2 | . 2 . Communications Jammed . | . . . Distress Signals . | . . . Times Spotted 26 | . 19 7 Peak Tracking Total 5 | . 5 2 Tactical Retreats 1 | . 1 . Traps | -11 -10 -10 ------- Run | Yrd Mat Sub Traps Triggered . | . . . Indirectly . | . . . Trap Hack Attempts . | . . . Triggered . | . . . Disarmed 6 | . 6 . Reprogrammed . | . . . Reused . | . . . Traps Extracted . | . . . Installed . | . . . Triggered . | . . . Machines | -11 -10 -10 ---------- Run | Yrd Mat Sub Machines Disabled . | . . . Max in Single Turn . | . . . Machines Repaired . | . . . Machines Dismantled . | . . . Machines Sabotaged . | . . . Overloaded Fab Kills . | . . . Hacking | -11 -10 -10 --------- Run | Yrd Mat Sub Machines Accessed 1 | . 1 . Terminals 1 | . 1 . Fabricators . | . . . Repair Stations . | . . . Recycling Units . | . . . Scanalyzers . | . . . Garrison Access . | . . . Total Hacks 2 | . 2 . Successful 1 | . 1 . Failed 1 | . 1 . Catastrophic . | . . . Database Lockouts . | . . . Manual . | . . . Terminals 2 | . 2 . Fabricators . | . . . Repair Stations . | . . . Recycling Units . | . . . Scanalyzers . | . . . Garrison Access . | . . . Terminal Hacks 1 | . 1 . Disarm Traps 1 | . 1 . Fabricator Hacks . | . . . Repair Station Hacks . | . . . Recycling Unit Hacks . | . . . Scanalyzer . | . . . Garrison Access Hacks . | . . . Unauthorized Hacks . | . . . Terminals . | . . . Fabricators . | . . . Repair Stations . | . . . Recycling Units . | . . . Scanalyzers . | . . . Garrison Access . | . . . Data Cores Recovered . | . . . Used . | . . . Hacking Detections 1 | . 1 . Full Trace Events . | . . . Feedback Events . | . . . Feedback Blocked . | . . . Robot Schematics Acquired . | . . . Robots Built . | . . . Authchips . | . . . Time . | . . . Total Robot Build Rating . | . . . Part Schematics Acquired . | . . . Parts Built . | . . . Authchips . | . . . Time . | . . . Total Part Build Rating . | . . . Parts Repaired . | . . . Time . | . . . Parts Recycled . | . . . Recycled Matter . | . . . Retrieved Matter . | . . . Retrieved Components . | . . . Parts Scanalyzed . | . . . Part Schematics Acquired . | . . . Parts Damaged . | . . . Bothacking | -11 -10 -10 ------------ Run | Yrd Mat Sub Used RIF Installer . | . . . Robots Hacked . | . . . Non-combat . | . . . Combat . | . . . Robot Hacks Applied . | . . . Relay Couplers Released . | . . . Fabnet Peak Effective % . | . . . Robots Rewired . | . . . Allies Hacked . | . . . Hacks Repelled . | . . . Allies | -11 -10 -10 -------- Run | Yrd Mat Sub Total Allies . | . . . Largest Group . | . . . Highest-Rated Group . | . . . Highest-Rated Ally . | . . . Total Orders . | . . . Ally Attacks . | . . . Total Damage . | . . . Kills . | . . . Allies Corrupted . | . . . Allies Melted . | . . . Intel | -11 -10 -10 ------- Run | Yrd Mat Sub Active Infowar (turns) 83 | 1 82 . Seismic 83 | 1 82 . Robot Analysis Total . | . . . Derelict Logs Recovered . | . . . Drone Launches . | . . . Drone Recoveries . | . . . Exploration | -11 -10 -10 ------------- Run | Yrd Mat Sub Turns Passed 1855 | 97 645 1113 Spaces Moved 728 | 66 311 351 Core 192 | 66 126 . Treads 1 | . . 1 Legs . | . . . Wheels 535 | . 185 350 Hover . | . . . Flight . | . . . Fastest Speed 50 | 50 50 185 Average Speed 193 | 78 128 272 Slowest Speed 720 | 100 185 720 Overloaded Moves . | . . . Propulsion Burnouts . | . . . Robots Hopped . | . . . Potential Cave-ins . | . . . Cave-ins Triggered . | . . . Exploration Rate (%) 26 | 3 49 26 Regions Visited 2 Branch Regions 1 Pre-discovered Areas . | . . . Known Exits Taken . | . . . Unknown Exits Taken 2 | 1 1 . Scrap Searched 5 | . . 5 Spaces Dug 3 | . 3 . Terrain Destroyed 11 | . 9 2 Melee 3 | . 3 . Projectile 2 | . . 2 AOE 6 | . 6 . Terrain Rammed . | . . . Walls Destroyed . | . . . Machines Disabled . | . . . Actions | -11 -10 -10 --------- Run | Yrd Mat Sub Total 999 | 91 455 453 Wait 66 | 4 32 30 Move 726 | 65 310 351 Hop . | . . . Pick Up 56 | 7 36 13 Fast Attach 7 | 2 4 1 Attach 10 | 3 1 6 Detach . | . . . Swap 12 | . 4 8 Drop 24 | 1 11 12 Fire 88 | 9 48 31 Melee 10 | . 9 1 Ram . | . . . Kick . | . . . Crush . | . . . Escape Stasis . | . . . Rewire . | . . . Trap . | . . . Miscellaneous . | . . . Route ------- -11/Scrapyard -10/Materials (discovered 2 exits: [*Mat] / [*Sub]) -10/Subcaves History --------- Turn | Location | Event 3 | -11/Scrapyard | Discovered new exit (range 15) 98 | -11/Scrapyard | Entered Materials 411 | -10/Materials | Discovered new exit (range 15) 473 | -10/Materials | Build established: Hauler-Mutant 739 | -10/Materials | Discovered new exit (range 3) 743 | -10/Materials | Entered Subcaves 744 | -10/Subcaves | Approached by a straggling Scientist 794 | -10/Subcaves | Core integrity fell below 50% 952 | -10/Subcaves | Disturbed a concealed Subdweller 1534 | -10/Subcaves | Shifting Twisted Machinery released Sub. Beam Cannon 1552 | -10/Subcaves | Shifting Twisted Machinery released Lgt. Humpback 1847 | -10/Subcaves | Core integrity fell below 20% 1856 | -10/Subcaves | Destroyed by ST-P3K(R) with Subdweller Machine Gun Last Messages --------------- 01563_ Acquired Battle Rifle. TS-0QF(c): "I think it's somewhere northwest of here" 01692_ LE-OA2(R) destroyed. TS-0QF(c): "I think it's somewhere northwest of here" 01724_ Dropped Sub. Monowheel. 01724_ Acquired Sub. Monowheel. 01727_ Dropped Wheel. 01727_ Acquired Sub. Monowheel. 01730_ Dropped Lgt. Treads. 01730_ Acquired Wheel. 01734_ Acquired 17 matter. TS-0QF(c): "I think it's somewhere northwest of here" 01842_ Wheel destroyed. 01843_ 2F-5E2(R) knocked back. 01848_ Battle Cannon destroyed. 01850_ Wheel destroyed. 01854_ 2F-5E2(R) destroyed. Map ----- +----------------------------------------------------+ | % """""?????????????????????????? | | ## % ?????????????????????????? | | ######% ##### ?????????????????????????? | | # #???# ##?????? ??????????????????????????? | | #% ##??## ##????????? ?????????????????????????? | | # ##??# ##????????????????????????????????????? | | # #??# ##????????????????????????????????????? | | ##?##% ##???????????????????????????????????? | | ###### #### #???????????????????????????? | | ##??# ## #?????????????????????????? | | #??## # #?????????????????????????? | | ##### # # ## #????????????????????????? | | ## ###? ?????????????????????????? | | ?#[ "" ### #?????????????????????????? | | ?# "" #??????????????????????????? | | ?##" " ???????????????????????????? | | ??## ???????????????????????????? | | ???## ## ??????????????????????????? | | ???## #?### ???????????????????????????? | | ??## #????# ????????##?????????????????? | | ?## ##????# ????????#;###???????????????? | | ## "! ##??## ?####### # # # #???????? | | # " " #### ##?## R%! #???????? | | " " ## #??# !& #??????? | | """""" ## #??## %## # #???????? | | """"""""""" ## #### @##??? ##??????????????? | | " ####" ##??????#???????????????? | | # ???## c #???????????????????????? | | # # ????# ## #???????????????????????? | | # ?#### ######???????????????????????? | | ##?# ##?# #########???????????????? | | # ##???## ######??# #???????????????? | | ?#?###### % ##????????# #???????????????? | | ???# ## ##??#####??# #???????????????? | | ???# ##### ##??? ##??????????????? | | ???# ## ##???# ##?????????????? | | ??## ## % ##### ##????????????? | | ?## ### #????????????? | | ## ### % ## #??????????? | | # ## ## ##? #?????????? | | ## % ## ## ## #????????? | | ?# ????????? | | ?# ##### ????????? | | ?# #???#### ## ?????????? | | ?#### #??????## =### ?????????? | | ????## ##????#??## ### ## ?????????? | | ?????###?????# ## % ## ##? ??????????? | | ??????????????# &%! ####?? ####??????????? | | ??????????????### & #???? #?????????????? | | ????????????????# #???? #????????????? | +----------------------------------------------------+ Best States ------------- Heat Dissipation 25 Energy Generation 10 Energy Capacity 125 Matter Stores 300 Matter Capacity 300 Sight Range 16 Terrain Scan Density 10 Evasion (%) 50 Recoil Reduction 2 Item Schematics ----------------- None Robot Schematics ------------------ None Fabricated ------------ Nothing Repaired ---------- Nothing Alien Tech Used ----------------- None Achievements -------------- None Challenges ------------ None Game ------ Seed GravjetScrapMiniperforator Manual? 0 Play Time 00:09:54 Cumulative 205.9 hours Start 2025.05.28 @ 18:42:29 End 2025.05.28 @ 18:56:01 Sessions 1 Manual Loads 0 Difficulty Rogue Special Mode None Game No. 221 Rogue 221 Adventurer 0 Explorer 0 Win Type - Total 1 Types 1/0/0/0/0/0/0/0/0/0 Lore% 73 Gallery% 72 Achievement% 64 Wizard Run 0 Options --------- Layout 1 ASCII 0 Keyboard 0 Movement Numpad Keybinds 0 Fullscreen 1 Font 24/Smallcaps Map View 50x35 Zoom Use 0% Tactical HUD 1 Map Filters NONE Filters NONE Steam 1 RUN: cc3386d5-596e-49c1-88a3-525e1e041ff5